fUST/lending_fUST_20250531
["ID","MTS","AMOUNT","RATE_DAILY","PERIOD"]
[363350334,1748688643498,-151.0,0.00022,7]
[363350335,1748688643507,-2284.58,0.00022,2]
[363350336,1748688643517,-151.0,0.00022,7]
[363350337,1748688643528,-151.0,0.00022,7]
[363350338,1748688643538,-151.0,0.00022,7]
[363350339,1748688643548,-2200.0,0.00022,2]
[363350340,1748688643557,-975.15,0.00022,7]
[363350341,1748688643567,-159.848236,0.00022,7]
[363350342,1748688643577,-159.848236,0.00022,7]
[363350343,1748688643587,-273.0,0.00022,2]
[363350344,1748688643597,-151.0,0.00022,7]
[363350345,1748688643609,-153.254637,0.00022,7]
[363350346,1748688643619,-151.0,0.00022,7]
[363350347,1748688643628,-66449.31,0.00022,2]
[363350348,1748688643639,-8772.43,0.00022,2]
[363350349,1748688643650,-3693.1,0.00022,7]
[363350350,1748688643660,-151.0,0.00022,7]
[363350351,1748688643670,-151.0,0.00022,7]
[363350352,1748688643680,-327.375835,0.00022,7]
[363350353,1748688643690,-327.375835,0.00022,7]
[363350354,1748688643699,-151.0,0.00022,7]
[363350355,1748688643711,-153.841364,0.00022,7]
[363350356,1748688643721,-551.407411,0.00022,7]
[363350357,1748688643731,-551.407411,0.00022,7]
[363350358,1748688643740,-1150.0,0.00022,5]
[363350359,1748688643750,-151.0,0.00022,7]
[363350360,1748688643760,-151.0,0.00022,7]
[363350361,1748688643771,-151.0,0.00022,7]
[363350362,1748688643781,-194.62863,0.00022,7]
[363350363,1748688643790,-194.62863,0.00022,7]
[363350364,1748688643800,-1000.0,0.00022,2]
[363350365,1748688643811,-151.0,0.00022,7]
[363350366,1748688643820,-151.0,0.00022,7]
[363350367,1748688643830,-151.0,0.00022,7]
[363350368,1748688643839,-250.0,0.00022,30]
[363350369,1748688643850,-150.0,0.00022,2]
[363350370,1748688643860,-151.0,0.00022,7]
[363350371,1748688643870,-151.0,0.00022,7]
[363350372,1748688643880,-153.17958,0.00022,7]
[363350373,1748688643889,-151.0,0.00022,7]
[363350374,1748688643900,-151.0,0.00022,7]
[363350375,1748688643910,-151.0,0.00022,7]
[363350376,1748688643921,-212.77096907,0.00022,7]
[363350377,1748688643932,-1029.782581,0.00022,7]
[363350378,1748688643943,-1029.782581,0.00022,7]
[363350379,1748688643953,-3097.944437,0.00022,2]
[363350380,1748688643964,-12664.98044988,0.00022,7]
[363350381,1748688643974,-3097.944437,0.00022,2]
[363350382,1748688643984,-189.53451635,0.00022017,30]
[363350383,1748688643995,-151.0,0.000221,10]
[363350384,1748688644004,-3079.448512,0.00022141,6]
[363350385,1748688644014,-215.0738,0.00022148,2]
[363350386,1748688644024,-176.414694,0.00022164,2]
[363350387,1748688644034,-200.0,0.00022191,30]
[363350388,1748688644048,-872.15,0.00022191,2]
[363350389,1748688644058,-781.02,0.00022191,2]
[363350390,1748688644069,-3395.6,0.00022191,2]
[363350391,1748688644080,-975.01,0.00022191,2]
[363350392,1748688644089,-812.68,0.00022191,2]
[363350393,1748688644100,-769.45,0.00022191,2]
[363350394,1748688644111,-430.0,0.00022191,2]
[363350395,1748688644120,-441.29,0.00022191,2]
[363350396,1748688644131,-542.14,0.00022191,2]
[363350397,1748688644141,-873.22,0.00022191,2]
[363350398,1748688644151,-562.7,0.00022191,2]
[363350399,1748688644162,-189.53451635,0.00022198,30]
[363350400,1748688644174,-151.0,0.000222,6]
[363350401,1748688644183,-152.24687626,0.00022217,2]
[363350402,1748688644193,-151.0,0.000223,6]
[363350403,1748688644204,-189.53451635,0.00022379,30]
[363350404,1748688644214,-3079.448512,0.00022417,7]
[363350405,1748688644225,-5000.0,0.00022423,2]
[363350406,1748688644235,-151.0,0.00022465,7]
[363350407,1748688644245,-159.848236,0.00022465,7]
[363350408,1748688644256,-159.848236,0.00022465,7]
[363350409,1748688644267,-151.0,0.00022465,7]
[363350410,1748688644277,-309.87718007,0.00022465,30]
[363350411,1748688644287,-574.76,0.00022465,2]
[363350412,1748688644296,-872.15,0.00022465,2]
[363350413,1748688644306,-781.02,0.00022465,2]
[363350414,1748688644316,-3395.6,0.00022465,2]
[363350415,1748688644327,-975.01,0.00022465,2]
[363350416,1748688644337,-812.68,0.00022465,2]
[363350417,1748688644348,-769.45,0.00022465,2]
[363350418,1748688644358,-305.64,0.00022465,2]
[363350419,1748688644368,-305.64,0.00022465,2]
[363350420,1748688644378,-305.64,0.00022465,2]
[363350421,1748688644388,-305.64,0.00022465,2]
[363350422,1748688644397,-305.64,0.00022465,2]
[363350423,1748688644407,-305.64,0.00022465,2]
[363350424,1748688644416,-305.64,0.00022465,2]
[363350425,1748688644425,-305.64,0.00022465,2]
[363350426,1748688644435,-305.64,0.00022465,2]
[363350427,1748688644444,-305.64,0.00022465,2]
[363350428,1748688644453,-305.64,0.00022465,2]
[363350429,1748688644463,-305.64,0.00022465,2]
[363350430,1748688644473,-305.64,0.00022465,2]
[363350431,1748688644482,-305.64,0.00022465,2]
[363350432,1748688644492,-305.64,0.00022465,2]
[363350433,1748688644501,-305.64,0.00022465,2]
[363350434,1748688644510,-305.64,0.00022465,2]
[363350435,1748688644519,-305.64,0.00022465,2]
[363350436,1748688644529,-305.64,0.00022465,2]
[363350437,1748688644540,-305.64,0.00022465,2]
[363350438,1748688644549,-252.02187857,0.00022465,2]
[363350439,1748688644559,-441.29,0.00022465,2]
[363350440,1748688644568,-542.14,0.00022465,2]
[363350441,1748688644578,-873.22,0.00022465,2]
[363350442,1748688644587,-562.7,0.00022465,2]
[363350443,1748688644596,-2000.0,0.000225,2]
[363350444,1748688644605,-500.0,0.000225,2]
[363350445,1748688644615,-89872.75278603,0.00022512,2]
[363350446,1748688644625,-506.58068065,0.00022521,2]
[363350447,1748688644635,-1000.0,0.00022521,2]
[363350448,1748688644644,-500.0,0.00022521,2]
[363350449,1748688644655,-1000.0,0.00022521,2]
[363350450,1748688644665,-1000.0,0.00022521,2]
[363350451,1748688644675,-1000.0,0.00022521,2]
[363350452,1748688644686,-1000.0,0.00022521,2]
[363350453,1748688644697,-1000.0,0.00022521,2]
[363350454,1748688644707,-1000.0,0.00022521,2]
[363350455,1748688644717,-540.41710014,0.00022521,2]
[363350456,1748688644726,-525.52033247,0.00022521,2]
[363350457,1748688644737,-1000.0,0.00022521,2]
[363350458,1748688644748,-151.0,0.00022521,7]
[363350459,1748688644758,-1000.0,0.00022548,2]
[363350460,1748688644769,-2669.08693054,0.00022558,2]
[363350461,1748688644778,-189.53451635,0.0002256,30]
[363350462,1748688644788,-151.0,0.00022601,7]
[363350463,1748688644797,-151.0,0.00022601,7]
[363350464,1748688644807,-3097.944437,0.00022601,2]
[363350465,1748688644816,-3097.944437,0.00022601,2]
[363350466,1748688644825,-5033.5749792,0.00022601,2]
[363350467,1748688644835,-5000.0,0.00022601,2]
[363350468,1748688644844,-5000.0,0.00022601,2]
[363350469,1748688644854,-5000.0,0.00022601,2]
[363350470,1748688644863,-5000.0,0.00022601,2]
[363350471,1748688644873,-519.096663,0.00022603,2]
[363350472,1748688644882,-12096.44470395,0.0002266,2]
[363350473,1748688644892,-152.087997,0.0002266,7]
[363350474,1748688644903,-1029.782581,0.0002266,7]
[363350475,1748688644913,-1029.782581,0.0002266,7]
[363350476,1748688644922,-3079.448512,0.00022693,7]
[363350477,1748688644932,-151.0,0.000227,6]
[363350478,1748688644942,-153.595309,0.00022739,7]
[363350479,1748688644952,-151.0,0.00022739,7]
[363350480,1748688644962,-151.0,0.00022739,7]
[363350481,1748688644971,-151.0,0.00022739,7]
[363350482,1748688644981,-151.0,0.00022739,7]
[363350483,1748688644991,-327.375835,0.00022739,7]
[363350484,1748688645001,-327.375835,0.00022739,7]
[363350485,1748688645010,-151.0,0.00022739,7]
[363350486,1748688645020,-551.407411,0.00022739,7]
[363350487,1748688645030,-551.407411,0.00022739,7]
[363350488,1748688645041,-151.0,0.00022739,7]
[363350489,1748688645052,-151.0,0.00022739,7]
[363350490,1748688645062,-151.427335,0.00022739,7]
[363350491,1748688645071,-872.15,0.00022739,2]
[363350492,1748688645082,-781.12849608,0.00022739,2]
[363350493,1748688645091,-3395.79727104,0.00022739,2]
[363350494,1748688645101,-975.15671225,0.00022739,2]
[363350495,1748688645111,-812.73273888,0.00022739,2]
[363350496,1748688645121,-769.5515797,0.00022739,2]
[363350497,1748688645131,-305.64,0.00022739,2]
[363350498,1748688645141,-441.41400216,0.00022739,2]
[363350499,1748688645150,-542.20303731,0.00022739,2]
[363350500,1748688645160,-873.40248351,0.00022739,2]
[363350501,1748688645170,-562.76985348,0.00022739,2]
[363350502,1748688645179,-189.53451635,0.00022741,30]
[363350503,1748688645189,-266.045581,0.0002277,7]
[363350504,1748688645199,-210.966913,0.0002277,7]
[363350505,1748688645209,-210.966913,0.0002277,7]
[363350506,1748688645219,-151.0,0.0002277,7]
[363350507,1748688645229,-151.0,0.0002277,7]
[363350508,1748688645239,-151.0,0.0002277,7]
[363350509,1748688645249,-336.653628,0.0002277,7]
[363350510,1748688645259,-336.653628,0.0002277,7]
[363350511,1748688645269,-151.0,0.0002277,7]
[363350512,1748688645279,-323.362942,0.0002277,7]
[363350513,1748688645288,-151.0,0.0002277,7]
[363350514,1748688645298,-323.362942,0.0002277,7]
[363350515,1748688645308,-246.575222,0.0002277,2]
[363350516,1748688645317,-246.575222,0.0002277,2]
[363350517,1748688645327,-151.0,0.0002277,7]
[363350518,1748688645337,-151.0,0.0002277,7]
[363350519,1748688645347,-151.0,0.0002277,7]
[363350520,1748688645356,-151.0,0.0002277,7]
[363350521,1748688645365,-352.038617,0.0002277,7]
[363350522,1748688645375,-352.038617,0.0002277,7]
[363350523,1748688645384,-151.0,0.0002277,7]
[363350524,1748688645394,-151.0,0.0002277,7]
[363350525,1748688645405,-409.136036,0.0002277,7]
[363350526,1748688645416,-409.136036,0.0002277,7]
[363350527,1748688645427,-151.0,0.0002277,7]
[363350528,1748688645439,-1723.783253,0.0002277,7]
[363350529,1748688645448,-1723.783253,0.0002277,7]
[363350530,1748688645457,-151.0,0.0002277,7]
[363350531,1748688645467,-151.0,0.0002277,7]
[363350532,1748688645476,-194.62863,0.0002277,7]
[363350533,1748688645486,-194.62863,0.0002277,7]
[363350534,1748688645496,-151.0,0.0002277,7]
[363350535,1748688645505,-151.0,0.0002277,7]
[363350536,1748688645515,-151.0,0.0002277,7]
[363350537,1748688645527,-151.0,0.0002277,7]
[363350538,1748688645541,-151.0,0.0002277,7]
[363350540,1748688645550,-500.0,0.000228,2]
[363350541,1748688645560,-364.3142842,0.00022849,2]
[363350542,1748688645569,-350.4572445,0.00022849,2]
[363350543,1748688645579,-364.3142842,0.00022849,2]
[363350544,1748688645589,-500.0,0.00022873,2]
[363350545,1748688645599,-500.0,0.00022873,2]
[363350546,1748688645609,-500.0,0.00022873,2]
[363350547,1748688645618,-500.0,0.00022873,2]
[363350548,1748688645628,-500.0,0.00022873,2]
[363350549,1748688645637,-347.47889072,0.00022873,2]
[363350550,1748688645647,-500.0,0.00022873,2]
[363350551,1748688645656,-500.0,0.00022873,2]
[363350552,1748688645666,-502.26417517,0.00022873,2]
[363350554,1748688645676,-423.20417964,0.00022873,2]
[363350555,1748688645685,-500.0,0.00022873,2]
[363350556,1748688645695,-500.0,0.00022873,2]
[363350557,1748688645705,-500.0,0.00022873,2]
[363350558,1748688645715,-600.0,0.00022873,2]
[363350559,1748688645725,-500.0,0.00022873,2]
[363350560,1748688645735,-341.58993269,0.00022873,2]
[363350561,1748688645745,-501.59646273,0.00022873,2]
[363350562,1748688645755,-500.0,0.00022873,2]
[363350563,1748688645766,-500.0,0.00022873,2]
[363350564,1748688645778,-302.36421885,0.00022899,2]
[363350565,1748688645788,-160.0,0.00022899,2]
[363350566,1748688645797,-151.0,0.00022899,7]
[363350567,1748688645807,-161.80893012,0.00022899,2]
[363350568,1748688645817,-151.0,0.00022899,7]
[363350569,1748688645826,-3097.944437,0.00022899,2]
[363350570,1748688645836,-3097.944437,0.00022899,2]
[363350571,1748688645845,-134682.37,0.000229,7]
[363350572,1748688645858,-151.0,0.000229,7]
[363350573,1748688645868,-151.0,0.000229,7]
[363350574,1748688645878,-151.0,0.000229,7]
[363350575,1748688645888,-159.848236,0.000229,7]
[363350576,1748688645897,-159.848236,0.000229,7]
[363350577,1748688645906,-151.0,0.000229,7]
[363350578,1748688645916,-151.0,0.000229,7]
[363350579,1748688645926,-151.0,0.000229,7]
[363350580,1748688645935,-362.332697,0.000229,7]
[363350581,1748688645947,-362.332697,0.000229,7]
[363350582,1748688645956,-151.0,0.000229,7]
[363350583,1748688646077,-63781.22063587,0.000229,2]
[363350585,1748688646094,-500.0,0.000229,2]
[363350587,1748688646410,-430.0,0.00016438,2]
[363350588,1748688646420,-165.7184457,0.00016438,2]
[363350608,1748689537132,-5000.0,0.0001529,2]
[363350609,1748689537657,-546.1098759,0.00015445,2]
[363350610,1748689537680,-402.83965086,0.00016393,2]
[363350611,1748689537703,-300.0,0.00016427,2]
[363350612,1748689537726,-588.34,0.00016428,3]
[363350613,1748689537747,-294.17,0.00016428,3]
[363350614,1748689537769,-882.54,0.00016428,3]
[363350615,1748689537790,-300.0,0.00016436,2]
[363350616,1748689537814,-500.0,0.00016437,2]
[363350617,1748689537835,-464.69350722,0.00016437,2]
[363350619,1748689626102,-403.52369497,0.00015573,2]
[363350620,1748689627087,-241.2754438,0.00015573,2]
[363350621,1748689630094,-3623.43196573,0.00015573,2]
[363350622,1748689630116,-300.0,0.00016436,2]
[363350623,1748689630141,-300.0,0.00016436,2]
[363350624,1748689630164,-35.30649278,0.00016437,2]
[363350625,1748689630188,-500.0,0.00016437,2]
[363350626,1748689630209,-500.0,0.00016437,2]
[363350627,1748689630234,-500.0,0.00016437,2]
[363350628,1748689630256,-500.0,0.00016437,2]
[363350629,1748689630278,-500.0,0.00016437,2]
[363350630,1748689630301,-500.0,0.00016437,2]
[363350631,1748689630323,-419.20892301,0.00016437,2]
[363350632,1748689630345,-500.0,0.00016437,2]
[363350633,1748689630368,-500.0,0.00016437,2]
[363350634,1748689630391,-500.0,0.00016437,2]
[363350635,1748689630414,-340.42964887,0.00016437,2]
[363350636,1748689639111,-159.57035113,0.00016437,2]
[363350637,1748689639141,-437.30627494,0.00016437,2]
[363350638,1748689639167,-500.0,0.00016437,2]
[363350639,1748689639358,-500.0,0.00016437,2]
[363350640,1748689639384,-500.0,0.00016437,2]
[363350641,1748689639411,-500.0,0.00016437,2]
[363350642,1748689639438,-181.47374198,0.00016437,2]
[363350643,1748689648104,-318.52625802,0.00016437,2]
[363350644,1748689648128,-500.0,0.00016437,2]
[363350645,1748689648151,-185.39477013,0.00016437,2]
[363350647,1748689724475,300463.82567703,0.00024658,120]
[363350650,1748689745158,-4710.1544,0.00016,2]
[363350651,1748689754150,-155.25947989,0.00016,2]
[363350652,1748689772144,-134.58612011,0.00016,2]
[363350653,1748689772167,-152.21005989,0.00016338,2]
[363350654,1748689772188,-300.0,0.00016436,2]
[363350655,1748689772209,-253.32594453,0.00016437,2]
[363350656,1748689772231,-500.0,0.00016437,2]
[363350657,1748689772255,-500.0,0.00016437,2]
[363350658,1748689772276,-500.0,0.00016437,2]
[363350659,1748689772299,-500.0,0.00016437,2]
[363350660,1748689772322,-52.22375629,0.00016437,2]
[363350662,1748689824134,17062.97185118,0.00024658,120]
[363350692,1748689831910,-254.0,0.00016436,2]
[363350693,1748689831920,-447.77624371,0.00016437,2]
[363350695,1748689831930,-500.0,0.00016437,2]
[363350697,1748689831940,-500.0,0.00016437,2]
[363350699,1748689831951,-500.0,0.00016437,2]
[363350701,1748689831966,-500.0,0.00016437,2]
[363350703,1748689831982,-500.0,0.00016437,2]
[363350705,1748689831991,-500.0,0.00016437,2]
[363350707,1748689832001,-500.0,0.00016437,2]
[363350709,1748689832011,-559.11083393,0.00016437,2]
[363350711,1748689832020,-500.0,0.00016437,2]
[363350713,1748689832030,-499.99999999,0.00016437,2]
[363350715,1748689832039,-354.18192467,0.00016437,2]
[363350717,1748689832049,-272.47901835,0.00016438,2]
[363350719,1748689832058,-402.14819521,0.00016438,2]
[363350721,1748689832068,-400.85864954,0.00016438,2]
[363350723,1748689832078,-403.36585357,0.00016438,2]
[363350725,1748689832089,-251.56706903,0.00016438,2]
[363350727,1748689832099,-472.46751558,0.00016438,2]
[363350729,1748689832108,-430.0,0.00016438,2]
[363350731,1748689832118,-450.97233275,0.00016438,2]
[363350733,1748689832128,-309.41176861,0.00016438,2]
[363350735,1748689832137,-450.0,0.00016438,2]
[363350737,1748689832146,-350.0,0.00016438,2]
[363350739,1748689832157,-270.67325098,0.00016438,2]
[363350742,1748689832167,-350.0,0.00016438,2]
[363350744,1748689832176,-430.0,0.00016438,2]
[363350745,1748689832186,-352.31898252,0.00016438,2]
[363350748,1748689832196,-350.0,0.00016438,2]
[363350750,1748689832205,-72.18779629,0.00016438,2]
[363350757,1748689832269,-283.79220371,0.00016438,2]
[363350759,1748689832279,-350.0,0.00016438,2]
[363350761,1748689832289,-261.92,0.00016438,2]
[363350763,1748689832300,-450.0,0.00016438,2]
[363350764,1748689832310,-1.61708513,0.00016438,2]
[363350766,1748689832381,-348.38291487,0.00016438,2]
[363350767,1748689832391,-450.0,0.00016438,2]
[363350768,1748689832402,-358.78897994,0.00016438,2]
[363350769,1748689832411,-450.0,0.00016438,2]
[363350770,1748689832421,-450.0,0.00016438,2]
[363350771,1748689832431,-430.0,0.00016438,2]
[363350772,1748689832441,-386.93157782,0.00016438,2]
[363350773,1748689832451,-402.62254269,0.00016438,2]
[363350774,1748689832461,-351.41348252,0.00016438,2]
[363350775,1748689832471,-430.0,0.00016438,2]
[363350776,1748689832481,-430.0,0.00016438,2]
[363350777,1748689832491,-353.25243876,0.00016438,2]
[363350778,1748689832502,-400.0,0.00016438,2]
[363350779,1748689832511,-430.0,0.00016438,2]
[363350780,1748689832522,-450.0,0.00016438,2]
[363350781,1748689832531,-450.0,0.00016438,2]
[363350782,1748689832541,-263.57627594,0.00016438,2]
[363350783,1748689832552,-403.71002091,0.00016438,2]
[363350784,1748689832562,-430.0,0.00016438,2]
[363350785,1748689832572,-430.0,0.00016438,2]
[363350786,1748689832582,-430.0,0.00016438,2]
[363350787,1748689832596,-404.37917613,0.00016438,2]
[363350788,1748689832606,-402.91591186,0.00016438,2]
[363350789,1748689832616,-450.0,0.00016438,2]
[363350790,1748689832626,-1000.0,0.00016438,2]
[363350791,1748689832636,-430.0,0.00016438,2]
[363350792,1748689832647,-403.01610068,0.00016438,2]
[363350793,1748689832658,-430.0,0.00016438,2]
[363350794,1748689832668,-430.0,0.00016438,2]
[363350795,1748689832681,-430.0,0.00016438,2]
[363350796,1748689832691,-403.57839012,0.00016438,2]
[363350797,1748689832702,-355.7022067,0.00016438,2]
[363350798,1748689832718,-420.0,0.00016438,2]
[363350799,1748689832727,-430.0,0.00016438,2]
[363350800,1748689832736,-402.44058395,0.00016438,2]
[363350801,1748689832746,-457.37422099,0.00016438,2]
[363350802,1748689832756,-430.0,0.00016438,2]
[363350803,1748689832766,-430.0,0.00016438,2]
[363350804,1748689832776,-489.79383217,0.00016438,2]
[363350805,1748689832786,-456.54368725,0.00016438,2]
[363350806,1748689832797,-464.47531691,0.00016438,2]
[363350807,1748689832807,-311.18,0.00016438,2]
[363350808,1748689832817,-458.02326878,0.00016438,2]
[363350809,1748689832826,-430.0,0.00016438,2]
[363350810,1748689832836,-430.0,0.00016438,2]
[363350811,1748689832846,-430.0,0.00016438,2]
[363350812,1748689832859,-353.01183693,0.00016438,2]
[363350813,1748689832869,-470.0,0.00016438,2]
[363350814,1748689832879,-400.0,0.00016438,2]
[363350815,1748689832889,-430.0,0.00016438,2]
[363350816,1748689832899,-355.83676872,0.00016438,2]
[363350817,1748689832909,-430.0,0.00016438,2]
[363350818,1748689832919,-403.58921252,0.00016438,2]
[363350819,1748689832930,-450.0,0.00016438,2]
[363350820,1748689832941,-430.0,0.00016438,2]
[363350821,1748689832951,-403.37123141,0.00016438,2]
[363350822,1748689832962,-454.66541509,0.00016438,2]
[363350823,1748689832972,-451.84824957,0.00016438,2]
[363350824,1748689832982,-453.78701563,0.00016438,2]
[363350825,1748689832991,-272.19913309,0.00016438,2]
[363350826,1748689833001,-450.0,0.00016438,2]
[363350827,1748689833010,-430.0,0.00016438,2]
[363350828,1748689833020,-430.0,0.00016438,2]
[363350829,1748689833031,-453.90236767,0.00016438,2]
[363350830,1748689833042,-457.19320164,0.00016438,2]
[363350831,1748689833055,-430.0,0.00016438,2]
[363350832,1748689833066,-430.0,0.00016438,2]
[363350833,1748689833076,-430.0,0.00016438,2]
[363350834,1748689833087,-452.26972829,0.00016438,2]
[363350835,1748689833097,-430.0,0.00016438,2]
[363350836,1748689833108,-402.90102188,0.00016438,2]
[363350837,1748689833119,-430.0,0.00016438,2]
[363350838,1748689833130,-430.0,0.00016438,2]
[363350839,1748689833140,-403.25551439,0.00016438,2]
[363350840,1748689833150,-450.0,0.00016438,2]
[363350841,1748689833161,-406.12887639,0.00016438,2]
[363350842,1748689833171,-456.66,0.00016438,2]
[363350843,1748689833182,-450.0,0.00016438,2]
[363350844,1748689833192,-450.0,0.00016438,2]
[363350845,1748689833204,-430.0,0.00016438,2]
[363350846,1748689833214,-450.0,0.00016438,2]
[363350847,1748689833225,-430.0,0.00016438,2]
[363350848,1748689833236,-354.78945124,0.00016438,2]
[363350849,1748689833246,-430.0,0.00016438,2]
[363350850,1748689833256,-450.0,0.00016438,2]
[363350851,1748689833266,-450.0,0.00016438,2]
[363350852,1748689833276,-443.79035073,0.00016438,2]
[363350853,1748689833286,-430.0,0.00016438,2]
[363350854,1748689833296,-285.59592398,0.00016438,2]
[363350855,1748689833309,-456.25081034,0.00016438,2]
[363350856,1748689833320,-430.0,0.00016438,2]
[363350857,1748689833331,-430.0,0.00016438,2]
[363350858,1748689833341,-450.0,0.00016438,2]
[363350859,1748689833352,-167.96451252,0.00016438,2]
[363350860,1748689833362,-430.0,0.00016438,2]
[363350861,1748689833378,-430.0,0.00016438,2]
[363350862,1748689833389,-507.16635689,0.00016438,2]
[363350863,1748689833401,-400.0,0.00016438,2]
[363350864,1748689833411,-430.0,0.00016438,2]
[363350865,1748689833422,-430.0,0.00016438,2]
[363350866,1748689833432,-430.0,0.00016438,2]
[363350867,1748689833441,-430.0,0.00016438,2]
[363350868,1748689833452,-430.0,0.00016438,2]
[363350869,1748689833462,-500.0,0.00016438,2]
[363350870,1748689833473,-500.0,0.00016438,2]
[363350871,1748689833483,-500.0,0.00016438,2]
[363350872,1748689833493,-500.0,0.00016438,2]
[363350873,1748689833692,-500.0,0.00016438,2]
[363350874,1748689833702,-430.0,0.00016438,2]
[363350875,1748689833712,-430.0,0.00016438,2]
[363350876,1748689833722,-400.0,0.00016438,2]
[363350877,1748689833732,-430.0,0.00016438,2]
[363350878,1748689833742,-430.0,0.00016438,2]
[363350879,1748689833752,-430.0,0.00016438,2]
[363350880,1748689833763,-430.0,0.00016438,2]
[363350881,1748689833773,-430.0,0.00016438,2]
[363350882,1748689833783,-430.0,0.00016438,2]
[363350883,1748689833793,-430.0,0.00016438,2]
[363350884,1748689833803,-430.0,0.00016438,2]
[363350885,1748689833812,-470.0,0.00016438,2]
[363350886,1748689833822,-541.81892531,0.00016438,2]
[363350887,1748689833831,-457.51563763,0.00016438,2]
[363350888,1748689833841,-470.0,0.00016438,2]
[363350889,1748689833851,-430.0,0.00016438,2]
[363350890,1748689833861,-430.0,0.00016438,2]
[363350891,1748689833871,-430.0,0.00016438,2]
[363350892,1748689833881,-430.0,0.00016438,2]
[363350893,1748689833892,-430.0,0.00016438,2]
[363350894,1748689833901,-430.0,0.00016438,2]
[363350895,1748689833911,-430.0,0.00016438,2]
[363350896,1748689833921,-430.0,0.00016438,2]
[363350897,1748689833930,-430.0,0.00016438,2]
[363350898,1748689833940,-422.8025939,0.00016438,2]
[363350899,1748689833950,-431.69512029,0.00016438,2]
[363350900,1748689833960,-165.1215153,0.00016438,2]
[363350901,1748689833970,-450.0,0.00016438,2]
[363350902,1748689833982,-420.0,0.00016438,2]
[363350903,1748689833992,-430.0,0.00016438,2]
[363350904,1748689834001,-430.0,0.00016438,2]
[363350905,1748689834011,-500.0,0.00016438,2]
[363350906,1748689834021,-430.0,0.00016438,2]
[363350907,1748689834031,-430.0,0.00016438,2]
[363350908,1748689834040,-430.0,0.00016438,2]
[363350909,1748689834054,-430.0,0.00016438,2]
[363350910,1748689834064,-498.87,0.00016438,2]
[363350911,1748689834074,-430.0,0.00016438,2]
[363350912,1748689834084,-430.0,0.00016438,2]
[363350913,1748689834093,-479.46108759,0.00016438,2]
[363350914,1748689834103,-430.0,0.00016438,2]
[363350915,1748689834113,-430.0,0.00016438,2]
[363350916,1748689834123,-412.02817314,0.00016438,2]
[363350917,1748689834133,-430.0,0.00016438,2]
[363350918,1748689834143,-430.0,0.00016438,2]
[363350919,1748689834153,-430.0,0.00016438,2]
[363350920,1748689834163,-430.0,0.00016438,2]
[363350921,1748689834173,-500.0,0.00016438,2]
[363350922,1748689834183,-500.0,0.00016438,2]
[363350923,1748689834194,-500.0,0.00016438,2]
[363350924,1748689834204,-500.0,0.00016438,2]
[363350925,1748689834214,-531.82908056,0.00016438,2]
[363350926,1748689834224,-325.77514038,0.00016438,2]
[363350927,1748689834234,-376.64837287,0.00016438,2]
[363350928,1748689834244,-430.0,0.00016438,2]
[363350929,1748689834254,-430.0,0.00016438,2]